bitfinex/quotes_ETHUSD_20250622
["timestamp","ask_amount","ask_price","bid_price","bid_amount"]
[1750618861360,0.8245,2187.2,2186.9,1.995]
[1750618861564,0.7627,2187.2,2186.9,6.56760106]
[1750618862194,0.8602,2187.4,2187.0,4.57234594]
[1750618862398,0.8602,2187.4,2187.1,4.57215236]
[1750618862692,0.0618,2187.3,2186.9,6.56758747]
[1750618863598,0.8602,2187.4,2187.0,4.57246642]
[1750618863777,0.8602,2187.4,2186.9,6.61330435]
[1750618863976,0.7984,2187.4,2186.9,6.56758353]
[1750618864274,0.0618,2187.3,2186.9,6.56758353]
[1750618864475,0.0618,2187.3,2186.9,7.68162892]
[1750618864996,0.7984,2187.4,2187.0,4.57247239]
[1750618865200,0.7728,2187.2,2186.5,0.53573285]
[1750618865366,0.7728,2187.1,2186.6,1.995]
[1750618865561,0.0618,2187.0,2186.6,6.56826612]
[1750618865865,0.0618,2187.0,2186.7,4.57307177]
[1750618866068,0.0618,2187.0,2186.8,4.57282382]
[1750618866971,0.0618,2187.0,2186.7,4.57300104]
[1750618867583,0.7728,2187.1,2187.0,4.5724737]
[1750618867806,10.8187,2187.3,2187.0,4.5724737]
[1750618868100,10.0,2187.3,2187.1,0.04572204]
[1750618868407,0.8187,2187.5,2186.8,0.8023]
[1750618868408,0.8187,2187.5,2186.9,0.0974177]
[1750618868587,0.0618,2187.4,2186.8,5.37518896]
[1750618868791,0.0618,2187.4,2187.0,4.57247151]
[1750618869698,0.8187,2187.5,2187.0,4.57247151]
[1750618869899,0.0618,2187.4,2187.0,4.57247151]
[1750618872610,0.0618,2187.4,2187.1,4.57223288]
[1750618872810,0.8805,2187.5,2187.1,4.57223288]
[1750618873014,0.8805,2187.5,2187.2,4.572031]
[1750618873421,1.54565088,2187.6,2187.5,4.57142857]
[1750618874796,1.54565088,2187.6,2187.4,6.56654238]
[1750618875138,0.0618,2187.5,2187.1,5.2288848]
[1750618875287,2.36435088,2187.6,2187.2,0.848016]
[1750618875629,2.36435088,2187.6,2187.3,4.57175036]
[1750618876835,2.42615088,2187.6,2187.3,4.57175036]
[1750618877220,2.42615088,2187.6,2187.4,4.57162295]
[1750618877388,2.36435088,2187.6,2187.3,5.75648312]
[1750618878091,1.54565088,2187.6,2187.4,4.57146892]
[1750618880009,1.54565088,2187.6,2187.3,5.80817058]
[1750618880208,1.54565088,2187.6,2187.4,4.57163103]
[1750618880408,1.54565088,2187.6,2187.5,0.58537805]
[1750618881008,1.54565088,2187.6,2187.5,2.58037805]
[1750618881523,1.54565088,2187.6,2187.5,7.93200662]
[1750618883892,1.54565088,2187.6,2187.5,0.58537805]
[1750618884135,1.54565088,2187.6,2187.5,7.15180662]
[1750618884724,1.54565088,2187.6,2187.5,2.58037805]
[1750618885121,1.54565088,2187.6,2187.5,0.58537805]
[1750618885327,1.54565088,2187.6,2187.5,1.995]
[1750618885925,1.54565088,2187.6,2187.5,6.61213881]
[1750618886117,1.54565088,2187.6,2187.5,7.34662857]
[1750618887421,1.54565088,2187.6,2187.5,16.40015998]
[1750618888897,0.57961908,2187.6,2187.5,16.95015998]
[1750618889098,0.57961908,2187.6,2187.5,19.97761329]
[1750618889647,0.57961908,2187.6,2187.5,17.98261329]
[1750618889799,0.57961908,2187.6,2187.5,27.54461329]
[1750618890001,0.57961908,2187.6,2187.5,27.99459292]
[1750618890205,0.57961908,2187.6,2187.5,17.88259292]
[1750618890735,0.57961908,2187.6,2187.5,26.99261329]
[1750618891397,0.8146,2188.1,2187.8,4.57075011]
[1750618891598,0.8146,2188.3,2187.9,5.07335002]
[1750618891818,0.8146,2188.3,2188.0,6.56329136]
[1750618892210,0.8146,2188.3,2188.0,6.60898896]
[1750618892895,0.8764,2188.5,2188.1,4.57017114]
[1750618893241,0.8764,2188.5,2188.2,0.04569601]
[1750618894135,0.8532,2188.8,2188.2,7.61169601]
[1750618894348,0.7914,2188.6,2188.2,1.993]
[1750618894507,0.0618,2188.5,2188.2,1.993]
[1750618894706,10.7914,2188.6,2188.2,1.993]
[1750618894897,0.0618,2188.5,2188.2,1.993]
[1750618895313,0.7564,2188.4,2188.2,1.993]
[1750618895513,0.0618,2188.3,2188.2,1.993]
[1750618896073,0.0618,2188.3,2188.0,4.57038095]
[1750618896217,0.0618,2188.3,2188.1,2.4957456]
[1750618896773,0.0618,2188.3,2188.1,7.06590935]
[1750618896917,0.8182,2188.4,2188.1,2.54144105]
[1750618897117,0.46842179,2189.0,2188.2,4.56995572]
[1750618897118,0.7564,2188.7,2188.2,4.56995572]
[1750618897430,0.7564,2188.7,2188.3,0.0456954]
[1750618897623,0.7564,2188.7,2188.3,5.7013205]
[1750618897859,0.7564,2188.7,2188.4,4.56954413]
[1750618898142,0.7564,2188.7,2188.5,0.04568884]
[1750618898344,0.7564,2188.7,2188.4,0.04568882]
[1750618899149,0.8182,2188.7,2188.4,0.04568882]
[1750618899842,0.7703,2188.9,2188.4,4.61522498]
[1750618900070,0.7703,2188.9,2188.4,1.78880192]
[1750618900214,0.0618,2188.8,2188.3,1.0860041]
[1750618900418,0.0618,2188.8,2188.3,5.65573831]
[1750618900935,0.7703,2188.9,2188.3,5.65573831]
[1750618901137,0.7703,2188.9,2188.4,1.992]
[1750618901536,0.0618,2188.8,2188.4,1.992]
[1750618901723,0.0618,2188.8,2188.4,3.51317383]
[1750618902066,0.7703,2188.9,2188.4,3.51317383]
[1750618902271,0.0618,2188.8,2188.4,3.51317383]
[1750618902472,0.0618,2188.7,2188.4,3.51317383]
[1750618905277,0.0618,2188.5,2188.4,1.992]
[1750618906717,9.81743141,2188.6,2188.1,0.5027456]
[1750618906980,0.0618,2188.4,2188.1,1.992]
[1750618907330,0.0618,2188.4,2188.1,6.60772754]
[1750618907530,0.0618,2188.4,2188.1,1.992]
[1750618908044,0.7639,2188.6,2188.1,6.60786335]
[1750618908278,0.0618,2188.5,2188.1,2.03769525]
[1750618908434,0.0618,2188.5,2188.1,7.30936715]
[1750618908861,0.7639,2188.6,2188.1,7.30936715]
[1750618909371,0.7639,2188.6,2188.1,2.73928921]
[1750618909666,0.0618,2188.4,2188.1,2.73928921]
[1750618910065,0.7639,2188.6,2188.1,2.73928921]
[1750618910277,0.0618,2188.5,2188.1,2.73928921]
[1750618910447,0.0618,2188.4,2188.1,2.73928921]
[1750618910640,0.0618,2188.4,2188.2,0.73095543]
[1750618910839,0.7639,2188.6,2188.2,0.73095543]
[1750618911177,0.7639,2188.6,2188.1,7.30944189]
[1750618911676,0.0618,2188.5,2188.1,7.35513712]
[1750618911893,0.0618,2188.5,2188.2,1.992]
[1750618912577,0.0618,2188.5,2188.1,1.992]
[1750618912578,10.0576,2188.3,2188.1,1.992]
[1750618912988,0.0576,2188.3,2188.1,1.992]
[1750618913149,0.0576,2188.3,2188.1,2.64823646]
[1750618913661,0.8044,2188.5,2188.1,7.26408418]
[1750618913859,0.862,2188.5,2188.1,7.26408418]
[1750618915769,0.8044,2188.5,2188.3,4.56965603]
[1750618915969,1.373542,2188.9,2188.3,4.56965603]
[1750618915970,0.7917,2188.7,2188.3,4.61544716]
[1750618916172,0.8493,2188.7,2188.3,5.79882892]
[1750618916384,0.8493,2188.7,2188.4,4.56953975]
[1750618916582,0.8493,2188.7,2188.3,5.75302246]
[1750618916781,0.8493,2188.7,2188.4,1.992]
[1750618918799,0.8493,2188.7,2188.3,1.18338176]
[1750618918998,10.7811,2188.4,2187.9,4.57048087]
[1750618919159,0.0576,2188.3,2188.1,1.992]
[1750618919575,10.7811,2188.4,2188.1,1.992]
[1750618919772,10.7811,2188.4,2188.0,4.57037204]
[1750618919991,0.0576,2188.3,2188.0,1.992]
[1750618920295,0.0576,2188.3,2188.0,4.08422438]
[1750618920591,10.7811,2188.4,2188.0,4.08422438]
[1750618920792,0.0576,2188.3,2188.0,4.08422438]
[1750618921171,10.0,2188.0,2187.5,1.99]
[1750618921495,0.0576,2187.5,2187.2,4.57190352]
[1750618921691,0.0576,2187.5,2187.2,6.56190352]
[1750618921893,0.0576,2187.5,2187.2,7.75458716]
[1750618922100,0.0576,2187.5,2187.3,4.5717808]
[1750618922298,10.0,2187.7,2187.4,4.57152307]
[1750618922501,0.8387,2188.1,2187.4,0.04571134]
[1750618922700,0.8387,2188.1,2187.7,4.57089351]
[1750618923014,0.0576,2188.0,2187.8,1.99]
[1750618923613,0.7811,2188.1,2187.8,6.56077369]
[1750618924466,0.7811,2188.3,2188.0,4.5702293]
[1750618924675,11.373749,2188.5,2187.8,3.18242261]
[1750618924676,0.7811,2188.5,2188.1,4.57017256]
[1750618925087,10.8387,2188.5,2188.1,4.57017256]
[1750618925510,10.8387,2188.5,2188.0,4.61600101]
[1750618925724,0.0576,2188.4,2188.0,1.99]
[1750618926023,10.7811,2188.5,2188.0,2.03569757]
[1750618926203,0.0576,2188.4,2188.0,1.99]
[1750618926521,10.7811,2188.5,2188.0,1.99]
[1750618926863,10.0,2188.3,2187.8,1.19242261]
[1750618927083,10.0,2188.3,2187.9,1.99]
[1750618927224,0.8277,2188.2,2187.9,1.99]
[1750618927970,0.0576,2188.5,2188.0,4.57027778]
[1750618928174,0.7701,2188.4,2187.9,6.56052602]
[1750618928467,0.0576,2188.3,2187.9,6.56052602]
[1750618928671,0.0576,2188.3,2187.9,8.51408708]
[1750618929171,0.0576,2188.3,2187.9,6.52408708]
[1750618929473,0.0576,2188.3,2187.9,8.51408708]
[1750618930463,0.0576,2188.3,2188.0,4.57024671]
[1750618930679,0.0576,2188.3,2188.0,1.99]
[1750618930850,0.7701,2188.4,2188.0,6.60607145]
[1750618931051,0.8277,2188.4,2188.0,7.46186253]
[1750618931262,0.8277,2188.4,2188.0,2.89166083]
[1750618931467,0.8277,2188.4,2188.0,7.46190918]
[1750618931669,0.8277,2188.4,2188.0,7.46190919]
[1750618932384,0.8277,2188.4,2188.0,2.89166084]
[1750618932589,0.8277,2188.4,2188.0,1.99]
[1750618933671,0.8277,2188.4,2188.0,6.56034068]
[1750618933864,0.8277,2188.4,2188.0,6.60603827]
[1750618934236,0.8277,2188.4,2188.0,6.56034068]
[1750618934434,0.7928,2188.6,2188.1,4.57005317]
[1750618934746,10.0,2188.5,2188.2,0.73977508]
[1750618935268,10.0,2188.5,2188.2,5.3096999]
[1750618935572,0.0576,2188.5,2188.2,0.73977508]
[1750618936379,0.0576,2188.5,2188.2,5.3097271]
[1750618936678,0.8504,2188.6,2188.2,5.30962968]
[1750618936839,0.8504,2188.6,2188.3,1.18698045]
[1750618937986,0.0576,2188.5,2188.3,1.18698045]
[1750618938140,0.0576,2188.5,2188.2,2.72977508]
[1750618942480,0.0576,2188.5,2188.2,7.29968175]
[1750618942647,0.0563,2188.5,2188.2,0.73977508]
[1750618942847,0.0563,2188.5,2188.2,1.99]
[1750618943754,0.0563,2188.4,2187.8,0.8209]
[1750618943978,10.8099,2188.3,2187.9,6.56057949]
[1750618944324,10.8099,2188.3,2188.0,4.57035573]
[1750618944973,10.7536,2188.3,2188.0,4.57035573]
[1750618945282,10.8099,2188.3,2188.0,1.19518263]
[1750618945488,0.0563,2188.2,2187.9,1.99]
[1750618945697,0.0563,2188.2,2187.9,4.57058062]
[1750618948899,9.10983141,2188.2,2187.6,0.8209]
[1750618949068,10.0,2188.0,2187.7,4.570893]
[1750618949586,10.0,2188.0,2187.6,0.8726]
[1750618949762,10.0563,2188.0,2187.6,0.54442129]
[1750618950084,10.0563,2188.0,2187.6,5.11562475]
[1750618951285,10.0,2188.0,2187.7,4.57094504]
[1750618952586,10.0563,2188.0,2187.7,4.57094504]
[1750618955488,0.7692,2187.4,2186.9,1.987]
[1750618955703,0.0563,2187.0,2186.5,1.987]
[1750618955896,10.0563,2186.8,2186.5,6.56038799]
[1750618956056,10.0563,2186.8,2186.5,6.56050063]
[1750618956394,10.0,2186.8,2186.6,4.57330919]
[1750618956965,10.0,2186.8,2186.5,1.987]
[1750618957295,10.0563,2186.8,2186.5,6.84157491]
[1750618957483,10.0563,2186.8,2186.5,2.26816]
[1750618957691,0.0563,2186.7,2186.5,4.57349826]
[1750618957885,10.0,2186.8,2186.6,4.57327889]
[1750618958394,10.0,2186.8,2186.4,4.57365074]
[1750618958793,0.0563,2186.7,2186.5,4.57348664]
[1750618959386,0.0563,2186.7,2186.4,4.57361947]
[1750618959583,0.0563,2186.7,2186.3,1.987]
[1750618959584,0.0563,2186.7,2186.3,6.56079303]
[1750618959785,0.0563,2186.7,2186.3,8.88397396]
[1750618960304,10.0,2186.8,2186.3,8.88397396]
[1750618960503,10.0,2186.6,2186.2,4.88891627]
[1750618960704,10.0,2186.4,2185.7,0.8011]
[1750618960867,10.0,2186.4,2185.8,0.0517]
[1750618960868,7.555,2186.4,2185.8,0.0517]
[1750618961186,7.555,2186.4,2186.0,4.57440229]
[1750618961382,0.804,2186.3,2186.1,0.04573792]
[1750618961583,0.804,2186.3,2185.9,4.57459326]
[1750618961789,0.804,2186.3,2186.0,0.91495772]
[1750618962884,10.0,2186.7,2186.0,4.57447021]
[1750618962885,0.7758,2186.6,2186.0,4.57447021]
[1750618963072,0.7758,2186.6,2186.1,1.987]
[1750618963276,0.0563,2186.5,2186.1,1.987]
[1750618963902,0.0563,2186.5,2186.0,4.57446129]
[1750618964100,0.0563,2186.3,2186.1,1.988]
[1750618964280,10.0563,2186.3,2186.1,1.988]
[1750618964477,10.0563,2186.3,2185.9,4.57477466]
[1750618964907,0.7501,2186.2,2185.8,1.988]
[1750618965104,0.8064,2186.2,2185.8,1.988]
[1750618965404,10.0,2186.3,2185.9,4.85366242]
[1750618965572,10.0,2186.3,2186.0,4.57444341]
[1750618965769,10.0,2186.3,2186.1,4.57424984]
[1750618966472,0.7501,2186.7,2186.2,5.40924692]
[1750618966698,7.557,2186.6,2186.3,4.61957339]
[1750618966865,7.557,2186.6,2186.3,4.57383857]
[1750618968311,7.557,2186.6,2186.4,4.57366183]
[1750618968514,8.3242,2186.9,2186.5,4.57340667]
[1750618968818,8.3242,2186.9,2186.6,4.57323141]
[1750618968971,10.0,2186.8,2186.5,4.57340443]
[1750618969171,10.0,2186.8,2186.6,5.53364601]
[1750618969801,10.0,2187.0,2186.7,4.57306868]
[1750618970005,10.0563,2187.0,2186.6,0.04572798]
[1750618970304,0.0563,2186.9,2186.6,0.04572798]
[1750618971217,0.0563,2186.9,2186.3,5.57216014]
[1750618971218,0.0563,2186.8,2186.3,1.988]
[1750618971501,0.0563,2186.9,2186.4,4.57370519]
[1750618972077,19.05353141,2187.0,2186.4,4.57370519]
[1750618972510,0.0572,2186.9,2186.4,4.57370519]
[1750618972815,0.0572,2186.9,2186.3,6.56184518]
[1750618973020,0.0572,2186.7,2186.4,4.57372737]
[1750618973779,0.8134,2186.4,2185.8,0.7555]
[1750618973983,10.0572,2186.2,2185.7,1.988]
[1750618974185,10.0572,2186.2,2185.7,6.56309957]
[1750618974438,10.0,2186.2,2185.8,5.30681677]
[1750618974642,10.0572,2186.2,2185.8,5.30681677]
[1750618974926,10.0572,2186.2,2185.8,0.73185996]
[1750618975214,10.0572,2186.2,2185.8,5.30682783]
[1750618975415,10.0572,2186.2,2185.8,0.73185996]
[1750618975817,0.0572,2186.1,2185.8,0.73185996]
[1750618976313,0.0572,2186.1,2185.7,6.56307765]
[1750618976314,0.0572,2186.1,2185.7,1.988]
[1750618976500,0.0572,2186.0,2185.5,4.57550287]
[1750618976704,0.0572,2185.9,2185.7,1.988]
[1750618977223,10.0572,2185.9,2185.7,1.988]
[1750618977601,0.7963,2185.8,2185.2,0.8301]
[1750618977823,0.7963,2185.8,2185.4,4.57581647]
[1750618977824,10.0,2185.7,2185.4,4.57581647]
[1750618978229,10.0,2185.7,2185.5,4.57550587]
[1750618978430,10.0,2185.7,2185.5,4.62125676]
[1750618978829,10.0,2185.7,2185.5,4.57550587]
[1750618979048,0.0572,2185.7,2185.2,4.57612604]
[1750618979355,0.0572,2185.7,2185.2,5.23770864]
[1750618979495,0.7963,2185.8,2185.2,5.23770864]
[1750618979903,0.7963,2185.8,2185.2,0.6615826]
[1750618980108,0.0572,2185.7,2185.2,5.23782254]
[1750618981304,0.7963,2185.8,2185.2,0.6615826]
[1750618981511,8.3252,2186.1,2185.5,9.05353141]
[1750618981843,10.0,2186.0,2185.8,4.57495026]
[1750618982047,10.0,2186.0,2185.8,4.620695]
[1750618982344,10.0,2186.0,2185.8,0.04574474]
[1750618982551,10.0,2186.0,2185.7,4.57508436]
[1750618983460,10.0,2186.0,2185.8,0.04574474]
[1750618983613,10.0,2186.0,2185.8,4.62065506]
[1750618983814,10.0,2186.0,2185.7,4.57513242]
[1750618984025,10.0572,2186.0,2185.7,4.57513242]
[1750618984718,10.0,2186.0,2185.8,4.62069881]
[1750618984920,10.0,2186.0,2185.9,4.57477469]
[1750618985119,10.0,2186.0,2185.6,6.56333627]
[1750618985335,10.0,2186.0,2185.7,5.23141561]
[1750618985728,10.0572,2186.0,2185.7,5.23141561]
[1750618986050,10.0572,2186.0,2185.2,5.23763276]
[1750618986051,10.0,2186.0,2185.3,1.9316114]
[1750618986259,10.0,2186.0,2185.5,4.57558229]
[1750618986555,0.0572,2185.9,2185.5,4.57558229]
[1750618987055,0.0572,2185.9,2185.4,6.5637222]
[1750618987365,0.0572,2185.9,2185.6,4.57539334]
[1750618987517,10.7672,2186.1,2185.8,4.57488484]
[1750618987718,10.8244,2186.1,2185.8,4.57488484]
[1750618988253,0.816,2186.4,2185.9,0.04574464]
[1750618988456,0.0572,2186.3,2185.9,4.57466301]
[1750618988755,0.0572,2186.3,2186.0,6.56252458]
[1750618989050,8.3178,2186.4,2186.0,1.988]
[1750618989213,0.0572,2186.3,2186.0,1.988]
[1750618989953,8.3178,2186.4,2186.0,1.988]
[1750618990174,0.7818,2186.2,2185.7,1.988]
[1750618990322,7.559,2186.1,2185.7,1.988]
[1750618990742,0.0572,2186.0,2185.7,1.988]
[1750618991318,7.559,2186.1,2185.7,1.988]
[1750618991829,0.0572,2186.0,2185.7,1.988]
[1750618992023,7.559,2186.1,2185.7,1.988]
[1750618993253,0.0572,2186.0,2185.7,6.56319277]
[1750618993460,0.0572,2186.0,2185.7,7.67705189]
[1750618994351,0.0572,2186.0,2185.7,3.10185912]
[1750618994754,0.0572,2186.0,2185.7,7.67695469]
[1750618995047,7.559,2186.1,2185.8,4.62057494]
[1750618996024,7.559,2186.1,2185.8,4.57482999]
[1750618997364,7.6162,2186.1,2185.8,4.57482999]
[1750618998961,7.559,2186.1,2185.8,4.57482999]
[1750618999161,0.0572,2186.0,2185.6,4.57532401]
[1750618999661,0.0572,2185.8,2185.6,4.57532401]
[1750618999831,0.0572,2185.8,2185.6,6.56332401]
[1750619000168,0.8026,2185.9,2185.6,1.988]
[1750619000349,0.8598,2185.9,2185.6,6.56330104]
[1750619000656,0.8598,2185.9,2185.7,4.57518563]
[1750619000863,0.8598,2185.9,2185.6,6.56330748]
[1750619001363,0.8598,2185.9,2185.6,1.988]
[1750619001533,0.8598,2185.9,2185.6,6.56337847]
[1750619001732,0.8026,2185.9,2185.6,1.988]
[1750619001979,0.0572,2185.8,2185.6,1.988]
[1750619002450,0.8026,2185.9,2185.6,1.988]
[1750619002652,0.8026,2185.9,2185.7,4.5750993]
[1750619002848,0.8026,2185.9,2185.8,4.57498398]
[1750619003091,0.8627,2185.9,2185.8,4.57498398]
[1750619003373,0.8627,2185.9,2185.7,4.57517833]
[1750619004153,0.8627,2185.9,2185.8,4.57498398]
[1750619004893,0.8627,2185.9,2185.7,4.57509732]
[1750619006502,0.8026,2185.9,2185.7,4.57518398]
[1750619006795,0.8627,2185.9,2185.7,4.57518398]
[1750619007158,0.8627,2185.9,2185.6,6.5633056]
[1750619007364,0.0601,2185.8,2185.6,6.5633056]
[1750619007561,0.7514,2186.3,2185.7,5.68892048]
[1750619007865,0.7514,2186.3,2185.8,4.57496717]
[1750619008067,0.0601,2186.1,2185.7,4.57508476]
[1750619008262,0.0601,2186.2,2185.7,4.57508476]
[1750619008462,0.7514,2186.3,2185.7,4.57508476]
[1750619008663,0.7514,2186.1,2185.8,1.988]
[1750619008865,0.0601,2186.0,2185.6,6.56329497]
[1750619009275,0.0601,2186.0,2185.6,1.988]
[1750619009474,0.0601,2185.8,2185.6,6.56339221]
[1750619010103,0.0601,2185.8,2185.6,1.988]
[1750619010395,0.0601,2185.8,2185.5,4.57552713]
[1750619010603,0.0601,2185.8,2185.5,6.56352713]
[1750619011202,0.0601,2185.8,2185.6,4.57529429]
[1750619012395,0.0601,2185.8,2185.5,6.56346172]
[1750619012573,0.7641,2186.1,2185.7,4.5750672]
[1750619012772,0.0601,2186.0,2185.8,4.57496376]
[1750619013600,10.7641,2186.1,2185.6,0.8258]
[1750619013910,10.0,2186.1,2186.0,4.57456541]
[1750619014072,0.8242,2186.3,2186.0,4.57456541]
[1750619014605,0.7641,2186.3,2186.0,4.57456541]
[1750619015475,0.8242,2186.3,2185.9,4.5746741]
[1750619015806,0.8242,2186.3,2185.8,1.986]
[1750619015807,0.0601,2186.2,2185.8,1.986]
[1750619015983,2.64855396,2186.3,2185.8,1.986]
[1750619016705,2.64855396,2186.3,2185.7,6.56109856]
[1750619016706,0.0601,2186.1,2185.7,6.56109856]
[1750619017013,0.7668,2186.2,2185.7,6.56109856]
[1750619017219,0.0601,2186.1,2185.7,6.56109856]
[1750619017406,0.0601,2186.1,2185.7,1.986]
[1750619017733,0.0601,2186.1,2185.7,6.5611765]
[1750619018517,0.0601,2186.1,2185.7,4.5751765]
[1750619018814,0.2711354,2186.1,2185.6,6.56129464]
[1750619019021,0.0601,2185.9,2185.6,1.986]
[1750619019185,0.7668,2186.0,2185.6,1.986]
[1750619019383,0.0601,2185.9,2185.5,6.56150157]
[1750619019583,0.0601,2185.9,2185.6,4.57538613]
[1750619021117,0.0601,2185.9,2185.7,4.5751764]
[1750619021524,0.8269,2186.0,2185.8,4.57498398]
[1750619022425,0.8269,2186.0,2185.7,4.57509496]
[1750619023541,10.8269,2186.0,2185.8,4.57494516]
[1750619023694,10.8269,2186.0,2185.7,4.57508692]
[1750619025122,10.7668,2186.0,2185.7,4.57508692]
[1750619025319,0.0601,2185.9,2185.6,4.57536927]
[1750619025502,0.0601,2185.9,2185.6,4.57531123]
[1750619025911,0.0601,2185.9,2185.7,4.575136]
[1750619030447,0.0601,2185.9,2185.8,4.57498398]
[1750619030948,0.0601,2185.9,2185.7,4.57508418]
[1750619032473,10.7668,2186.0,2185.7,4.57516048]
[1750619032769,10.7668,2186.0,2185.8,4.5748883]
[1750619033076,10.0,2186.0,2185.9,4.57477469]
[1750619033295,0.7856,2186.2,2185.9,4.57477469]
[1750619034684,0.8428,2186.2,2185.9,4.57477469]
[1750619035357,0.8428,2186.2,2185.8,4.57488143]
[1750619035961,10.0572,2186.1,2185.7,4.57512144]
[1750619036469,0.0572,2186.1,2185.8,4.5749303]
[1750619036843,0.7856,2186.2,2185.8,4.5749303]
[1750619037038,0.7856,2186.2,2185.7,4.5750731]
[1750619037232,7.556,2186.1,2185.6,4.57533947]
[1750619037427,0.0572,2186.0,2185.6,4.57533947]
[1750619037633,0.0572,2186.0,2185.8,4.57488769]
[1750619037824,7.6132,2186.1,2185.8,4.57488769]
[1750619038231,7.556,2186.1,2185.9,4.57460704]
[1750619038778,7.556,2186.1,2186.0,4.57456541]
[1750619038931,10.0572,2186.3,2185.8,5.41939988]
[1750619039130,10.0572,2186.3,2185.8,5.46514449]
[1750619039863,1.28443958,2186.4,2185.9,4.57476435]
[1750619040072,10.0,2186.3,2186.0,4.62021605]
[1750619040239,10.0,2186.3,2185.9,4.57468618]
[1750619040433,10.0,2186.3,2185.9,6.61238618]
[1750619040635,10.0,2186.3,2186.0,4.57455272]
[1750619040864,10.0,2186.3,2185.9,3.50218978]
[1750619041065,0.0572,2186.2,2185.9,1.986]
[1750619042174,0.0572,2186.2,2185.8,6.56088104]
[1750619043655,10.0,2186.3,2185.7,4.57507525]
[1750619044258,0.0572,2186.2,2185.7,4.57507525]
[1750619044790,0.0572,2186.2,2185.8,1.984]
[1750619045088,0.0572,2186.2,2185.7,4.57507525]
[1750619045239,0.0572,2186.2,2185.8,1.984]
[1750619045240,0.832,2186.1,2185.8,1.984]
[1750619045566,0.8892,2186.1,2185.8,1.984]
[1750619045757,0.8892,2186.1,2185.8,6.55897871]
[1750619045961,0.8892,2186.1,2185.8,1.984]
[1750619046573,0.0572,2186.0,2185.8,1.984]
[1750619047168,0.832,2186.1,2185.8,6.55895397]
[1750619047369,0.8892,2186.1,2185.8,1.984]
[1750619047886,0.8892,2186.1,2185.7,7.55043079]
[1750619048092,0.832,2186.1,2185.7,7.55043079]
[1750619048242,0.832,2186.1,2185.7,2.97535651]
[1750619048443,0.0572,2186.0,2185.4,0.7813]
[1750619048759,0.0572,2186.0,2185.6,4.57539044]
[1750619049267,10.832,2186.1,2185.5,6.55952624]
[1750619049473,10.832,2186.1,2185.5,6.55958916]
[1750619049677,0.0572,2186.0,2185.5,1.984]
[1750619049841,0.7876,2185.8,2185.2,1.984]
[1750619050037,0.7876,2185.6,2185.2,6.56022371]
[1750619050265,0.8448,2185.6,2185.2,6.56022371]
[1750619050762,0.8448,2185.6,2185.2,6.56012616]
[1750619050935,0.8448,2185.6,2185.3,4.57600078]
[1750619051138,0.8448,2185.6,2185.2,6.5601425]
[1750619051755,0.0572,2185.5,2185.2,1.984]
[1750619052257,0.0572,2185.5,2185.1,10.99]
[1750619052468,0.0572,2185.5,2185.2,4.57619105]
[1750619053775,0.0572,2185.5,2185.1,17.5503493]
[1750619054142,0.0572,2185.5,2185.1,12.974]
[1750619054337,0.7876,2185.6,2185.1,10.99]
[1750619054683,0.0572,2185.5,2185.1,12.974]
[1750619054876,8.3416,2185.6,2185.1,10.99]
[1750619055088,0.8163,2185.3,2185.1,12.974]
[1750619055244,0.8735,2185.3,2185.1,1.984]
[1750619057245,0.8735,2185.3,2185.1,6.5604414]
[1750619057786,0.0572,2185.2,2185.1,1.984]
[1750619057983,0.8735,2185.3,2185.1,1.984]
[1750619058279,0.8735,2185.3,2185.0,4.57658523]
[1750619058495,0.8163,2185.3,2185.0,4.57665903]
[1750619058862,0.8735,2185.3,2185.0,4.57655958]
[1750619059290,0.8735,2185.3,2185.1,4.57643537]
[1750619059494,0.8735,2185.3,2185.1,4.57626864]
[1750619060088,0.8735,2185.3,2185.0,4.57659046]
[1750619060471,0.8735,2185.3,2185.0,4.57654692]
[1750619060769,0.8735,2185.3,2185.1,4.57642423]
[1750619061860,0.8735,2185.3,2185.0,4.57654699]
[1750619062592,0.8163,2185.3,2184.9,6.56078341]
[1750619062796,0.0616,2185.2,2184.9,6.56078341]
[1750619063001,0.0616,2185.2,2185.0,4.57664271]
[1750619063199,0.8779,2185.3,2185.0,4.57664271]
[1750619063399,0.8163,2185.3,2184.9,6.56075077]
[1750619063701,0.0616,2185.2,2184.9,6.56075077]
[1750619065586,0.0616,2185.2,2184.9,1.984]
[1750619065790,0.0616,2185.2,2184.8,4.57699056]
[1750619065791,0.7819,2185.1,2184.8,1.985]
[1750619066099,0.0616,2185.0,2184.8,6.56207715]
[1750619066262,0.0616,2185.0,2184.8,1.985]
[1750619066461,0.0616,2185.0,2184.7,4.57717123]
[1750619066693,0.0616,2185.0,2184.7,6.56217123]
[1750619067260,0.0616,2184.9,2184.7,1.985]
[1750619067492,0.46586951,2185.3,2184.6,3.13308214]
[1750619067493,0.7819,2184.8,2184.6,3.13308214]
[1750619067703,0.8435,2184.6,2183.4,2.7395]
[1750619067891,10.8435,2183.8,2183.2,0.7819]
[1750619068208,18.3955,2183.8,2182.9,2.7395]
[1750619068377,18.9455,2183.8,2183.7,0.1837202]
[1750619069268,18.9455,2183.8,2182.4,4.58208559]
[1750619069269,0.7819,2183.4,2182.4,4.58208559]
[1750619069466,0.7819,2183.4,2182.5,0.0618]
[1750619069467,0.7819,2182.8,2182.5,0.0618]
[1750619069688,0.7819,2182.8,2182.2,1.985]
[1750619069689,0.7819,2182.8,2182.2,6.62924033]
[1750619070004,0.0616,2182.7,2182.1,4.6443827]
[1750619070298,0.0616,2182.7,2182.2,6.56747566]
[1750619070499,7.554,2182.7,2182.4,4.58198166]
[1750619070702,10.7819,2182.8,2182.4,4.58197109]
[1750619070901,10.7819,2182.8,2182.4,0.0618]
[1750619071201,0.7819,2182.8,2182.3,0.0618]